bitfinex/quotes_ETHUSD_20260108
["timestamp","ask_amount","ask_price","bid_price","bid_amount"]
[1767862669386,1.03150605,3115.0,3114.3,1.05519441]
[1767862669562,6.08749752,3115.0,3114.3,1.05519441]
[1767862669762,7.46612155,3115.0,3114.3,1.05519441]
[1767862670392,10.67639708,3115.0,3114.9,0.002]
[1767862670574,10.67639708,3115.0,3114.3,1.05519441]
[1767862670774,10.67639708,3115.0,3114.5,0.002]
[1767862673063,13.88667261,3115.0,3114.5,0.002]
[1767862673270,6.08749752,3114.8,3114.3,0.002]
[1767862675587,9.29801117,3114.8,3114.3,0.002]
[1767862676197,6.08749752,3114.8,3114.3,0.002]
[1767862677397,5.05599147,3114.8,3114.3,1.05519441]
[1767862678073,8.26651177,3114.8,3114.3,1.05519441]
[1767862679078,5.05599147,3114.4,3114.0,1.05319441]
[1767862679283,5.05599147,3114.6,3114.0,1.05319441]
[1767862679611,7.67187634,3114.8,3114.0,1.05319441]
[1767862680101,5.05599147,3114.7,3114.0,1.05319441]
[1767862681306,5.05399147,3114.7,3114.2,1.05319441]
[1767862681499,1.03150605,3114.6,3113.8,1.05519441]
[1767862681706,5.05599147,3114.5,3113.9,1.05319441]
[1767862682774,8.2667999,3114.5,3114.3,0.002]
[1767862682971,8.2667999,3114.5,3114.2,0.94236426]
[1767862683175,8.2667999,3114.5,3113.9,0.95615805]
[1767862683601,5.05599147,3114.3,3113.9,0.95615805]
[1767862683811,5.05399147,3114.3,3113.9,0.95615805]
[1767862687616,5.05599147,3114.1,3113.7,0.002]
[1767862687816,5.05599147,3114.1,3113.7,0.91452654]
[1767862688016,5.05599147,3114.2,3113.7,0.91452654]
[1767862689211,0.98091434,3114.3,3113.7,0.91452654]
[1767862689521,8.26691649,3114.4,3113.7,0.91452654]
[1767862690897,9.24783083,3114.4,3113.7,0.91452654]
[1767862691725,0.843,3114.5,3113.7,0.91452654]
[1767862692091,8.13074155,3114.8,3113.7,0.91452654]
[1767862692306,3.21058207,3114.7,3113.9,0.91213758]
[1767862694114,6.03690581,3114.6,3113.9,0.91213758]
[1767862694325,0.001,3114.4,3113.9,0.91213758]
[1767862700234,0.98191434,3114.4,3113.7,5.94909214]
[1767862700424,0.001,3114.4,3113.8,0.89110067]
[1767862700623,0.001,3114.4,3114.0,0.89110067]
[1767862705825,0.001,3114.1,3114.0,0.89110067]
[1767862706049,0.001,3114.1,3113.8,0.89110067]
[1767862707719,0.001,3114.1,3113.7,0.002]
[1767862707916,0.001,3114.1,3113.7,0.89310067]
[1767862709458,0.001,3114.1,3113.8,0.89110067]
[1767862716985,0.001,3114.4,3113.9,0.89110067]
[1767862717537,0.001,3114.1,3113.9,0.89110067]
[1767862719156,0.96821966,3114.4,3113.7,4.00203984]
[1767862719352,0.96821966,3114.4,3113.7,4.89314051]
[1767862719554,0.96821966,3114.4,3113.8,0.48931405]
[1767862720672,0.96621966,3114.4,3113.8,0.48931405]
[1767862724456,0.96621966,3114.4,3113.8,1.38141472]
[1767862727380,0.96421966,3114.4,3113.8,1.38141472]
[1767862727585,0.96221966,3114.4,3113.8,1.38141472]
[1767862727786,0.96221966,3114.4,3113.9,0.21719063]
[1767862727956,4.1731317,3114.4,3113.9,0.21719063]
[1767862728158,0.96721966,3114.3,3113.7,0.79049155]
[1767862728557,3.21084025,3114.5,3113.8,0.89610067]
[1767862728873,4.17805991,3114.5,3113.8,0.89610067]
[1767862729872,4.17805991,3114.5,3114.1,0.002]
[1767862731358,0.96721966,3114.5,3114.1,0.002]
[1767862731769,0.96721966,3114.7,3114.1,0.002]
[1767862731969,0.96721966,3114.6,3114.1,0.002]
[1767862733601,0.96721966,3114.5,3114.1,0.002]
[1767862735586,0.96721966,3114.4,3114.1,0.002]
[1767862736188,4.17795836,3114.6,3114.1,0.002]
[1767862737662,0.96721966,3114.6,3114.1,0.002]
[1767862737867,4.17792834,3114.6,3114.1,0.002]
[1767862738301,0.96721966,3114.6,3114.1,0.002]
[1767862739096,3.21066394,3114.7,3114.1,0.89810067]
[1767862739097,0.96721966,3114.7,3114.1,0.89810067]
[1767862739998,3.21052649,3114.8,3114.1,0.89810067]
[1767862740195,7.43229057,3117.5,3114.1,0.89810067]
[1767862740196,1.81021966,3115.2,3114.1,0.89810067]
[1767862740384,0.96721966,3115.0,3114.2,0.89610067]
[1767862740991,0.96721966,3115.0,3114.1,0.002]
[1767862742001,0.96721966,3114.8,3114.1,0.002]
[1767862742208,0.95543787,3114.7,3114.1,0.002]
[1767862742881,0.95543787,3114.7,3114.4,0.002]
[1767862743082,0.95643787,3114.7,3114.1,0.002]
[1767862744199,0.001,3114.7,3114.1,0.89810067]
[1767862744794,0.95643787,3114.7,3114.1,0.89810067]
[1767862745093,0.95643787,3114.7,3114.1,1.30924666]
[1767862748598,0.95643787,3114.7,3114.1,0.89810067]
[1767862749308,0.95543787,3114.6,3114.1,0.002]
[1767862755109,0.001,3114.7,3114.1,0.89810067]
[1767862755281,0.95246448,3114.7,3114.1,0.002]
[1767862755478,0.95146448,3114.6,3114.1,0.002]
[1767862756707,0.95146448,3114.6,3114.4,0.002]
[1767862756907,0.001,3114.7,3114.4,0.002]
[1767862763794,0.001,3114.7,3114.4,0.89810067]
[1767862764423,0.001,3114.7,3114.4,1.30901603]
[1767862764609,0.001,3114.7,3114.4,0.89810067]
[1767862765010,4.16157463,3115.2,3114.4,0.89810067]
[1767862765011,0.95146448,3115.1,3114.4,0.89810067]
[1767862765216,3.21011015,3115.2,3114.5,0.89610067]
[1767862765810,0.95146448,3115.3,3114.6,0.89610067]
[1767862766324,0.95146448,3115.2,3114.4,4.05581231]
[1767862766628,0.95146448,3115.2,3114.5,0.4951913]
[1767862767414,0.95146448,3114.8,3114.4,0.002]
[1767862767815,0.95146448,3114.7,3114.4,0.002]
[1767862769638,0.001,3114.5,3114.4,0.002]
[1767862772134,0.95146448,3114.6,3114.4,0.002]
[1767862773144,0.87999465,3114.6,3114.4,0.002]
[1767862773433,0.90991329,3115.2,3114.4,0.002]
[1767862774613,0.90991329,3115.2,3114.4,0.845]
[1767862774815,0.90991329,3115.2,3114.5,0.18339762]
[1767862775161,0.90991329,3115.1,3114.5,0.18339762]
[1767862777812,0.90991329,3115.0,3114.5,0.18339762]
[1767862778524,3.21012249,3115.2,3114.5,1.17237385]
[1767862778724,4.11992952,3115.3,3114.5,1.17237385]
[1767862778912,4.11992952,3115.3,3114.6,1.51180162]
[1767862779119,4.11992952,3115.3,3114.6,0.98897623]
[1767862781344,0.001,3115.0,3114.6,0.98897623]
[1767862781650,0.001,3115.0,3114.5,0.18339762]
[1767862782621,0.001,3115.0,3114.5,1.17237385]
[1767862785646,0.001,3115.0,3114.6,0.98897623]
[1767862785822,3.20944861,3115.8,3115.1,0.98897623]
[1767862786021,4.1193619,3115.8,3115.1,0.98897623]
[1767862786231,0.90991329,3115.8,3115.1,0.98897623]
[1767862787451,0.90991329,3115.8,3115.1,4.19912082]
[1767862787955,0.90991329,3115.8,3115.2,0.98897623]
[1767862788534,0.001,3115.9,3115.2,0.98897623]
[1767862788852,0.91091329,3115.9,3115.2,0.98897623]
[1767862789257,4.1203494,3115.9,3115.2,0.98897623]
[1767862789756,0.90991329,3115.8,3115.2,0.98897623]
[1767862792423,0.90991329,3115.8,3115.2,1.40889035]
[1767862792633,4.11939058,3115.8,3115.2,1.40889035]
[1767862792859,0.90991329,3115.8,3115.2,1.40889035]
[1767862793060,0.90991329,3115.8,3115.2,0.41991412]
[1767862793828,0.001,3115.5,3115.2,0.41991412]
[1767862794556,0.90991329,3115.7,3115.2,0.41991412]
[1767862794751,0.90991329,3115.8,3115.1,4.19912681]
[1767862795866,0.90991329,3115.8,3115.2,0.98897623]
[1767862796776,0.001,3115.9,3115.4,5.05579245]
[1767862797069,0.001,3115.9,3115.6,0.98897623]
[1767862797571,0.91091329,3116.2,3115.5,0.50557925]
[1767862798165,0.91091329,3116.2,3115.5,4.70425201]
[1767862798745,0.91091329,3116.2,3115.5,3.71527578]
[1767862798949,0.91091329,3116.2,3115.5,0.50557925]
[1767862799272,0.90991329,3116.1,3115.5,0.50557925]
[1767862800168,0.001,3116.2,3115.5,4.70431194]
[1767862800357,0.001,3116.2,3115.6,0.98897623]
[1767862800692,0.90991329,3116.4,3115.5,7.9140531]
[1767862800836,0.001,3116.5,3115.9,0.98897623]
[1767862801036,0.91091329,3116.5,3115.9,0.98897623]
[1767862801885,0.001,3116.5,3116.0,0.98897623]
[1767862802095,0.99792181,3117.3,3116.4,0.92405354]
[1767862802266,3.20674672,3118.5,3117.0,0.92405354]
[1767862802267,3.2070817,3118.1,3117.0,0.92405354]
[1767862802465,0.99792181,3118.0,3117.0,0.92405354]
[1767862802677,0.99792181,3117.8,3117.0,0.92405354]
[1767862802992,0.99792181,3117.2,3116.4,0.92405354]
[1767862803165,5.0522711,3117.3,3116.4,0.92405354]
[1767862803166,5.0522711,3117.5,3116.5,0.92405354]
[1767862803585,1.6029411,3117.7,3116.5,0.92405354]
[1767862803586,0.97384468,3117.6,3116.5,0.92405354]
[1767862803788,9.23381425,3117.5,3116.6,0.97599051]
[1767862803984,0.97384468,3117.4,3116.6,1.81799051]
[1767862804287,6.02611578,3117.1,3116.2,0.97599051]
[1767862804487,6.02611578,3117.1,3115.3,0.41736319]
[1767862804488,5.0522711,3116.7,3115.9,4.18527313]
[1767862804666,0.97384468,3116.8,3116.1,0.97599051]
[1767862805465,0.97384468,3116.7,3116.1,0.97599051]
[1767862805666,0.001,3116.2,3116.0,0.97599051]
[1767862805862,0.97384468,3116.7,3116.0,0.97599051]
[1767862806065,5.10583162,3116.7,3116.0,0.97599051]
[1767862806265,0.97384468,3116.6,3115.8,1.81799051]
[1767862806486,0.97384468,3116.6,3115.8,5.02742618]
[1767862806796,0.97384468,3116.6,3115.8,5.02742561]
[1767862807104,0.97384468,3116.6,3114.9,0.97599051]
[1767862807105,0.97384468,3115.8,3114.9,0.97599051]
[1767862807401,5.0522711,3115.6,3114.9,0.97599051]
[1767862807720,6.02611578,3115.6,3114.7,0.97599051]
[1767862808078,4.18356611,3115.6,3114.7,0.97599051]
[1767862808387,0.97384468,3115.7,3114.8,0.97599051]
[1767862808704,5.0522711,3115.2,3114.4,0.97799051]
[1767862808908,0.97384468,3115.4,3114.8,0.97599051]
[1767862809107,5.0522711,3116.0,3114.9,0.97599051]
[1767862809305,0.97384468,3116.0,3114.9,0.97599051]
[1767862809500,0.97384468,3116.0,3115.1,5.0522711]
[1767862809699,0.97384468,3116.0,3115.2,0.50522711]
[1767862810274,0.97384468,3116.0,3115.1,3.21016981]
[1767862810779,0.97384468,3115.9,3115.1,3.21016981]
[1767862810990,0.97384468,3115.8,3115.0,0.842]
[1767862811482,6.02611578,3115.9,3115.0,0.97599051]
[1767862811809,5.0522711,3115.5,3114.8,1.81799051]
[1767862812011,0.97384468,3115.5,3114.6,0.97599051]
[1767862812310,0.97384468,3115.4,3114.6,3.2106815]
[1767862812742,6.41938862,3115.6,3114.7,0.97599051]
[1767862812911,0.842,3116.0,3114.7,0.97599051]
[1767862813094,3.20927059,3116.0,3114.7,0.97599051]
[1767862813296,4.05127059,3116.0,3114.7,0.97599051]
[1767862813610,3.20915296,3116.1,3114.7,0.97599051]
[1767862813775,3.85097562,3116.1,3114.9,0.97599051]
[1767862814205,3.85097562,3116.1,3115.1,0.97599051]
[1767862814506,0.64182266,3116.1,3115.1,0.97599051]
[1767862814687,3.85098169,3116.1,3115.1,0.97599051]
[1767862815710,7.06014072,3116.1,3115.1,0.97599051]
[1767862815910,0.70601407,3116.0,3115.1,0.97599051]
[1767862816378,0.97384468,3115.8,3114.9,0.97599051]
[1767862816581,0.97384468,3115.8,3114.6,0.97599051]
[1767862817013,0.97384468,3115.8,3114.7,4.18651317]
[1767862817311,0.97384468,3115.8,3115.0,0.002]
[1767862818385,7.39294792,3115.7,3115.0,0.002]
[1767862818707,0.73929479,3115.6,3115.0,0.002]
[1767862819197,1.71313947,3115.6,3115.0,0.002]
[1767862819602,4.92289015,3115.6,3115.0,0.002]
[1767862819813,0.97384468,3115.5,3115.0,0.002]
[1767862822213,4.18362766,3115.5,3115.0,0.002]
[1767862824321,4.99688556,3115.5,3115.0,0.002]
[1767862825110,0.97384468,3115.4,3115.0,0.002]
[1767862825409,4.02304088,3115.5,3115.0,0.002]
[1767862828023,4.99688556,3115.5,3115.0,0.002]
[1767862829303,4.99688556,3115.5,3115.3,0.002]
[1767862829623,0.82065489,3115.4,3115.0,0.002]
[1767862829801,4.18362766,3115.5,3115.0,0.002]
[1767862831823,3.20934561,3115.9,3115.0,0.97799051]
[1767862832123,0.91258346,3115.8,3115.0,0.97799051]
[1767862832322,3.20934561,3115.9,3115.0,0.97799051]
[1767862832528,8.26346674,3115.9,3115.0,0.97799051]
[1767862832756,3.20934561,3115.9,3115.2,0.94835479]
[1767862834913,6.41869122,3115.9,3115.2,0.94835479]
[1767862835119,5.05412113,3115.8,3115.2,0.94835479]
[1767862836635,8.26346674,3115.9,3115.2,0.94835479]
[1767862837004,11.47281235,3115.9,3115.2,0.94835479]
[1767862837825,8.26346674,3115.9,3115.2,0.94835479]
[1767862838628,3.20934561,3115.9,3115.2,0.94835479]
[1767862839646,3.20934561,3115.9,3115.0,3.21222299]
[1767862839647,5.05412113,3115.5,3115.0,0.002]
[1767862839852,5.05412113,3115.5,3115.1,0.94835479]
[1767862840142,13.70822641,3115.9,3115.1,0.94835479]
[1767862840644,8.65410528,3115.9,3115.1,0.94835479]
[1767862841041,0.001,3115.6,3115.1,0.94835479]
[1767862841242,0.001,3115.6,3115.2,0.94835479]
[1767862841750,0.001,3115.6,3115.3,0.94835479]
[1767862842241,0.91258346,3115.9,3115.2,4.15841351]
[1767862842643,0.91258346,3115.9,3115.3,0.94835479]
[1767862842847,3.20925844,3116.0,3115.3,0.94835479]
[1767862844524,3.20914929,3116.1,3115.3,0.94835479]
[1767862844851,6.41829858,3116.1,3115.3,0.94835479]
[1767862845349,3.20914929,3116.1,3115.3,0.94835479]
[1767862845653,6.41829858,3116.1,3115.3,0.94835479]
[1767862845847,8.56939886,3116.1,3115.3,0.94835479]
[1767862846756,5.36024957,3116.1,3115.3,0.94835479]
[1767862847630,8.56939886,3116.1,3115.3,0.94835479]
[1767862848251,5.36024957,3116.1,3115.3,0.94835479]
[1767862848435,4.44766611,3116.1,3115.4,0.94835479]
[1767862848641,3.20903664,3116.2,3115.4,0.94835479]
[1767862849659,6.41807328,3116.2,3115.4,0.94835479]
[1767862850656,6.4176614,3116.4,3115.4,0.94835479]
[1767862851057,7.33024486,3116.4,3115.4,0.94835479]
[1767862851255,2.28649496,3116.3,3115.4,0.94835479]
[1767862852259,3.2088307,3116.4,3115.5,0.94835479]
[1767862852633,3.2088307,3116.4,3115.6,0.94835479]
[1767862852831,6.4176614,3116.4,3115.6,0.94835479]
[1767862853141,0.001,3115.9,3115.6,0.94835479]
[1767862855048,0.001,3115.9,3115.3,3.20991085]
[1767862855049,0.001,3115.9,3115.3,0.94835479]
[1767862856633,0.91358346,3115.9,3115.3,0.94835479]
[1767862856930,0.91158347,3115.9,3115.3,0.94835479]
[1767862858067,4.12093778,3115.9,3115.3,0.94835479]
[1767862858276,0.91258346,3115.3,3114.7,0.94835479]
[1767862858474,0.91258346,3114.8,3114.2,0.94835479]
[1767862858654,5.05428614,3114.6,3114.1,0.002]
[1767862858963,0.91258346,3114.7,3114.1,0.002]
[1767862859266,0.91258346,3114.7,3114.1,4.16150238]
[1767862859747,0.91258346,3114.7,3114.1,0.95035479]
[1767862860748,0.91258346,3114.7,3114.1,4.16152715]
[1767862861066,0.91258346,3114.9,3114.2,0.94835479]
[1767862861270,0.91258346,3115.5,3114.4,0.94835479]
[1767862861568,3.20986069,3115.4,3114.5,3.21078824]
[1767862861767,4.12244415,3115.4,3114.6,0.94835479]
[1767862862557,0.91258346,3115.4,3114.6,0.94835479]
[1767862862769,0.9783295,3115.6,3114.7,0.94563154]
[1767862863672,0.91134096,3115.5,3114.7,4.15616532]
[1767862864851,0.91134096,3115.5,3114.7,0.94763154]
[1767862865575,0.91134096,3115.5,3114.4,0.002]
[1767862865776,0.91134096,3115.3,3114.4,0.002]
[1767862865955,0.91134096,3115.2,3114.4,0.002]
[1767862867171,0.91134096,3115.2,3114.4,0.94262429]
[1767862868459,0.91134096,3115.0,3114.4,0.94262429]
[1767862868874,0.91134096,3115.0,3114.4,0.002]
[1767862869079,0.91134096,3114.8,3114.4,0.002]
[1767862869581,0.91134096,3114.8,3114.1,0.002]
[1767862870678,4.12182928,3114.8,3114.1,0.002]
[1767862871180,0.91134096,3114.7,3114.1,0.002]
[1767862871480,1.71787859,3114.7,3114.1,0.002]
[1767862871976,0.91134096,3114.6,3114.1,0.002]
[1767862872863,0.91134096,3114.5,3113.8,0.002]
[1767862873062,0.91134096,3114.5,3113.4,0.94262429]
[1767862873271,0.91134096,3114.3,3113.4,0.94262429]
[1767862874371,0.91134096,3114.3,3113.4,0.002]
[1767862874776,0.91134096,3114.1,3113.4,0.002]
[1767862876689,0.91134096,3114.1,3113.3,0.002]
[1767862876875,0.91134096,3113.9,3113.3,0.002]
[1767862877069,0.91134096,3113.7,3113.3,0.002]
[1767862878972,4.12300549,3113.7,3113.3,0.002]
[1767862879160,4.12296266,3113.7,3113.3,0.002]
[1767862879360,0.91134096,3113.7,3113.3,0.002]
[1767862879567,4.12298783,3113.7,3113.3,0.002]
[1767862879789,4.92976695,3113.7,3113.3,0.002]
[1767862879986,0.91134096,3113.6,3113.3,0.002]
[1767862880681,0.91134096,3114.4,3113.3,0.94262429]
[1767862880891,0.91134096,3114.0,3113.3,0.94262429]
[1767862881184,0.73337423,3113.9,3113.3,0.94262429]
[1767862881492,1.64471519,3113.9,3113.3,0.94262429]
[1767862883282,0.91134096,3113.7,3113.3,0.002]
[1767862885169,7.2660201,3113.8,3113.3,0.002]
[1767862885170,0.91134096,3113.5,3113.3,0.002]
[1767862885381,4.12286569,3113.8,3113.3,0.002]
[1767862885689,0.91134096,3113.7,3113.3,0.002]
[1767862885891,0.843,3113.8,3113.3,0.002]
[1767862886387,1.75434096,3113.8,3113.3,0.002]
[1767862889375,4.96589648,3113.8,3113.3,0.002]
[1767862889605,1.75434096,3113.8,3113.3,0.002]
[1767862890068,0.001,3113.5,3113.3,0.002]
[1767862890697,1.75434096,3113.8,3113.3,0.002]
[1767862891589,1.75434096,3114.0,3113.3,0.94262429]
[1767862891896,4.96564719,3114.0,3113.3,0.94262429]
[1767862892592,4.96564734,3114.0,3113.3,0.94262429]
[1767862892802,0.91134096,3114.0,3113.3,0.94262429]
[1767862892999,3.21094008,3114.4,3113.4,0.98437842]
[1767862893198,0.843,3114.3,3113.4,0.98437842]
[1767862893598,5.02841048,3114.3,3113.6,0.98437842]
[1767862893796,1.81740301,3114.3,3113.6,0.98437842]
[1767862893999,5.02842935,3114.3,3113.6,0.98437842]
[1767862895574,1.81740301,3114.3,3113.6,0.98437842]
[1767862895798,4.18524806,3114.5,3113.7,0.98437842]
[1767862896101,3.21084505,3114.5,3113.7,0.98437842]
[1767862896514,4.18512905,3114.6,3113.7,0.98437842]
[1767862897216,0.97440301,3114.5,3113.6,7.16421877]
[1767862897510,4.18488201,3114.8,3113.7,0.98437842]
[1767862897811,0.97440301,3114.7,3114.1,0.98437842]
[1767862898102,0.97440301,3114.7,3113.9,4.19574091]
[1767862898606,0.97440301,3114.7,3113.8,0.81485972]
[1767862898810,0.97440301,3114.7,3113.5,3.21176501]
[1767862899473,0.97440301,3114.7,3113.3,0.002]
[1767862899678,0.97440301,3114.3,3113.3,0.002]
[1767862900908,0.97440301,3114.3,3113.3,0.98637842]
[1767862901683,0.97440301,3114.3,3113.5,3.21181949]
[1767862901875,0.97440301,3114.3,3113.5,7.4080174]
[1767862902202,0.97440301,3114.3,3113.6,0.98437842]
[1767862902406,0.001,3114.4,3113.8,0.98437842]
[1767862903811,0.001,3114.4,3114.0,0.98437842]
[1767862905721,0.97440301,3114.8,3113.9,0.98437842]
[1767862906127,0.97440301,3114.8,3114.0,3.21130378]
[1767862906333,0.97440301,3114.7,3114.0,3.21130378]
[1767862906499,0.97440301,3114.7,3114.0,3.95202207]
[1767862907019,0.97440301,3114.7,3113.5,0.843]
[1767862907218,0.97440301,3114.7,3113.1,0.002]
[1767862907219,0.97440301,3113.9,3113.1,0.002]
[1767862907419,0.97440301,3113.9,3113.1,0.98637842]
[1767862907798,0.97440301,3113.9,3113.1,0.002]
[1767862907999,0.97440301,3113.7,3113.1,0.002]
[1767862908209,0.97440301,3113.5,3113.1,0.002]
[1767862909006,0.73974231,3113.6,3113.1,6.04839902]
[1767862909212,5.02891306,3113.8,3113.1,0.98637842]
[1767862909393,8.24042311,3113.8,3113.1,0.98637842]
[1767862909592,8.24042311,3113.8,3113.1,0.002]
[1767862909808,0.97440301,3113.7,3113.1,0.002]
[1767862910016,4.18632566,3113.4,3113.1,0.002]
[1767862913219,0.97440301,3113.4,3113.1,0.002]
[1767862913427,4.18633901,3113.4,3113.1,0.002]
[1767862914794,0.97440301,3113.4,3113.1,0.002]
[1767862914997,4.18635716,3113.4,3113.1,0.002]
[1767862917327,4.92617514,3113.4,3113.1,0.002]
[1767862921536,0.97440301,3113.3,3111.9,0.98437842]
[1767862921739,0.97440301,3113.2,3111.9,0.98437842]
[1767862922041,0.97440301,3113.2,3112.1,0.98437842]
[1767862922331,0.99424864,3113.1,3112.0,0.98212152]
[1767862922533,5.04920279,3113.4,3112.6,0.98212152]
[1767862923041,0.99424864,3113.3,3112.6,0.98212152]
[1767862923202,0.99424864,3113.3,3112.0,4.19545533]
[1767862923403,0.93928434,3113.1,3112.2,0.99570404]
[1767862923708,0.93928434,3113.1,3112.2,1.17957444]
[1767862923919,0.93928434,3113.1,3112.3,0.99570404]
[1767862924736,6.42425798,3113.2,3112.3,0.99570404]
[1767862926139,6.42405164,3113.3,3112.3,0.99570404]
[1767862926510,7.36333598,3113.3,3112.4,0.99570404]
[1767862926819,4.97194376,3113.3,3112.4,0.99570404]
[1767862927209,8.18396958,3113.3,3112.4,0.99570404]
[1767862927760,0.93928434,3113.2,3112.4,0.99570404]
[1767862928257,6.42446436,3113.1,3112.4,0.99570404]
[1767862928460,0.93928434,3113.0,3112.3,0.85865541]
[1767862928611,0.73637487,3112.9,3112.3,0.85865541]
[1767862928806,0.73637487,3112.9,3112.2,0.86065541]
[1767862928807,0.93928434,3112.8,3112.2,0.86065541]
[1767862929228,0.93928434,3112.8,3111.9,0.002]
[1767862929631,0.93928434,3112.8,3111.8,8.411e-05]
[1767862929835,0.73637487,3112.9,3112.0,0.86265541]
[1767862930054,0.843,3112.9,3112.2,0.86265541]
[1767862930213,4.15164331,3113.0,3112.2,0.86265541]
[1767862930629,7.36400228,3113.0,3112.2,0.86265541]
[1767862930824,0.93928434,3112.9,3112.2,0.86265541]
[1767862931025,0.93928434,3112.9,3111.8,0.86273952]
[1767862931231,0.93928434,3112.7,3111.8,4.07625112]
[1767862931751,0.93928434,3112.7,3111.8,0.86273952]
[1767862932045,0.93928434,3112.7,3112.0,0.86265541]
[1767862932219,6.42471794,3113.0,3112.0,0.86265541]
[1767862932220,3.21254176,3112.8,3112.0,0.86265541]
[1767862932923,4.1518261,3112.8,3112.0,0.86265541]
[1767862933219,4.1518261,3112.8,3112.0,1.77664598]
[1767862933425,4.1518261,3112.8,3112.1,0.86265541]
[1767862933629,3.21244488,3112.9,3112.3,0.86265541]
[1767862933829,4.99461573,3113.1,3112.3,0.86265541]
[1767862934028,0.93928434,3113.0,3112.3,0.86265541]
[1767862934254,0.93928434,3113.0,3112.1,0.86265541]
[1767862934419,0.93928434,3112.8,3112.1,0.86265541]
[1767862934618,0.93928434,3112.8,3111.9,0.86265541]
[1767862934844,0.93928434,3112.8,3112.0,0.59265036]
[1767862935143,0.93928434,3112.8,3111.8,8.411e-05]
[1767862935444,0.93928434,3112.6,3111.8,8.411e-05]
[1767862935827,0.93928434,3112.6,3111.8,3.21365628]
[1767862936145,0.93928434,3112.6,3111.8,8.411e-05]
[1767862936347,4.15211537,3112.6,3111.8,0.86273952]
[1767862936643,4.15211537,3112.6,3111.8,1.27039154]
[1767862938348,0.93928434,3112.6,3112.1,0.002]
[1767862940253,0.001,3112.9,3112.5,0.86265541]
[1767862940548,0.001,3112.9,3112.7,0.86265541]
[1767862940752,0.001,3112.9,3112.5,0.86265541]
[1767862940923,0.001,3112.9,3112.5,1.77658345]
[1767862941119,0.001,3112.9,3112.5,0.91392804]
[1767862941334,0.94028434,3112.9,3112.1,3.21524439]
[1767862941531,0.94028434,3112.9,3111.8,3.62123252]
[1767862941532,0.93928434,3112.7,3111.8,3.62123252]
[1767862941737,6.0040484,3112.9,3111.9,0.86465541]
[1767862941937,0.93928434,3112.6,3111.8,0.40773613]
[1767862942247,0.93928434,3112.6,3111.8,3.21359374]
[1767862942436,4.15210843,3112.6,3111.8,8.411e-05]
[1767862943452,0.93928434,3112.6,3111.8,8.411e-05]
[1767862943648,4.15205934,3112.6,3111.8,8.411e-05]
[1767862944247,4.15205934,3112.6,3111.8,0.86473952]
[1767862944454,0.93928434,3112.6,3112.0,3.2133676]
[1767862944630,0.001,3112.9,3112.1,0.86465541]
[1767862944831,0.001,3112.9,3112.3,0.86465541]
[1767862945038,0.93928434,3112.8,3111.9,4.48591754]
[1767862945437,0.93928434,3112.8,3111.9,1.27249377]
[1767862945634,0.93928434,3112.7,3111.9,0.40783836]
[1767862945963,0.93928434,3112.7,3111.9,3.62128939]
[1767862946559,0.93928434,3112.6,3111.9,3.62128939]
[1767862947360,0.93928434,3112.6,3111.9,0.40783836]
[1767862947543,0.93928434,3112.6,3111.9,3.62130265]
[1767862947745,0.93928434,3112.6,3112.0,0.36213868]
[1767862948360,0.94028434,3112.9,3112.0,1.22679409]
[1767862948667,0.94028434,3112.9,3112.1,4.07791976]
[1767862949451,4.15272663,3112.9,3112.1,4.07791976]
[1767862949655,0.93928434,3112.8,3112.0,0.36213868]
[1767862949855,0.93928434,3112.8,3111.9,0.86465541]
[1767862950375,0.93928434,3112.8,3111.9,4.07807473]
[1767862950376,0.001,3112.6,3111.9,4.07807473]
[1767862951346,0.001,3112.6,3112.0,0.86465541]
[1767862953380,0.001,3112.6,3112.1,3.21326435]
[1767862956564,0.001,3112.6,3112.2,0.86465541]
[1767862957964,0.001,3112.6,3112.2,4.07776112]
[1767862958572,0.001,3112.6,3112.1,0.72913649]
[1767862958991,0.001,3112.6,3112.0,5.92841947]
[1767862958992,0.001,3112.6,3112.0,4.07801888]
[1767862959190,0.001,3112.6,3112.0,0.86465541]
[1767862959778,0.94147434,3112.6,3111.9,3.21343081]
[1767862960063,0.94147434,3112.6,3111.8,3.21365824]
[1767862960270,0.94147434,3112.6,3111.8,7.29188778]
[1767862960471,0.94147434,3112.6,3111.9,0.86465541]
[1767862960693,0.94147434,3112.6,3111.8,7.74709755]
[1767862961291,0.94147434,3112.6,3112.0,5.06376406]
[1767862961697,0.94147434,3112.6,3111.8,12.81086161]
[1767862962079,0.001,3112.3,3111.8,12.81086161]
[1767862962276,0.001,3112.9,3112.2,5.06376406]
[1767862962475,0.001,3112.9,3112.3,5.06153221]
[1767862962679,0.001,3112.9,3112.4,0.96898483]
[1767862963075,0.843,3113.3,3112.6,0.96898483]
[1767862964804,0.843,3113.3,3112.6,4.18173271]
[1767862965005,0.843,3113.3,3112.6,4.9212004]
[1767862965501,0.843,3113.3,3112.6,4.92119619]
[1767862966103,0.843,3113.3,3112.6,1.70845252]
[1767862966104,4.05505341,3113.3,3112.6,1.70845252]
[1767862966984,0.843,3113.3,3112.6,4.92112498]
[1767862967179,4.99550591,3113.3,3112.6,1.70845252]
[1767862967402,0.94047434,3113.2,3112.4,4.18188069]
[1767862967798,0.94047434,3113.2,3112.5,0.96898483]
[1767862968401,4.1526574,3113.2,3112.5,0.96898483]
[1767862968898,7.36484046,3113.2,3112.5,0.96898483]
[1767862969100,1.32693727,3113.1,3112.5,0.96898483]
[1767862970683,4.53918368,3113.1,3112.5,0.96898483]
[1767862971104,1.32693727,3113.1,3112.5,0.96898483]
[1767862971314,5.47965151,3113.1,3112.5,0.96898483]
[1767862971809,5.47965151,3113.1,3112.2,3.2131108]
[1767862972010,0.94047434,3113.0,3112.3,0.96898483]
[1767862972194,0.94047434,3112.8,3112.1,0.96898483]
[1767862972394,0.94047434,3112.8,3112.0,3.21329275]
[1767862972784,0.94047434,3112.8,3111.9,3.21341473]
[1767862973305,0.94047434,3112.8,3112.0,3.21334659]
[1767862973508,0.94047434,3112.8,3112.0,3.94034397]
[1767862974107,0.94147434,3112.8,3112.0,3.94034397]
[1767862974522,0.94147434,3112.8,3112.1,3.21323651]
[1767862977524,0.001,3112.8,3112.2,0.96898483]
[1767862977714,0.001,3112.8,3112.3,0.96898483]
[1767862977913,0.001,3112.8,3112.4,1.57203653]
[1767862978092,3.21203509,3113.3,3112.7,0.96898483]
[1767862979794,4.15250943,3113.3,3112.5,0.96898483]
[1767862980222,4.15250943,3113.3,3112.4,0.6030517]
[1767862980223,0.94047434,3113.2,3112.4,0.6030517]